bitfinex-derivatives/quotes_SOLF0:USTF0_20250428
["timestamp","ask_amount","ask_price","bid_price","bid_amount"]
[1745809288414,4.77969713,146.12,146.09,24.94]
[1745809288608,4.77969713,146.12,146.09,31.7826]
[1745809288914,4.77969713,146.11,146.07,4.77969713]
[1745809289516,4.77969713,146.11,146.08,6.843]
[1745809289811,4.77969713,146.11,146.07,4.77969713]
[1745809290212,4.77969713,146.11,146.08,6.8429]
[1745809290616,6.8415,146.12,146.09,6.8428]
[1745809290818,4.77969713,146.12,146.09,6.8428]
[1745809291016,4.77969713,146.12,146.08,4.77969713]
[1745809291214,4.77969713,146.12,146.1,6.8423]
[1745809293017,4.77969713,146.12,146.11,6.8419]
[1745809293211,29.69969713,146.15,146.11,4.77969713]
[1745809293412,4.83738391,146.14,146.11,4.77969713]
[1745809293616,29.69969713,146.15,146.11,4.77969713]
[1745809293816,4.83707086,146.14,146.12,6.8412]
[1745809294516,4.77969713,146.15,146.12,6.8412]
[1745809294722,4.83711684,146.14,146.12,6.8412]
[1745809297225,4.77969713,146.15,146.12,6.8412]
[1745809297519,4.83861418,146.14,146.12,6.8412]
[1745809297720,4.77969713,146.15,146.12,6.8412]
[1745809298019,4.83857496,146.14,146.12,6.8412]
[1745809298223,4.77969713,146.15,146.12,6.8412]
[1745809298414,4.8398678,146.14,146.11,4.77969713]
[1745809298614,4.77969713,146.16,146.11,4.77969713]
[1745809298920,4.83987203,146.15,146.13,6.8408]
[1745809299127,4.83987203,146.14,146.13,6.8408]
[1745809300323,4.84330063,146.14,146.13,6.8408]
[1745809300623,4.77969713,146.16,146.13,6.8408]
[1745809300823,4.77969713,146.15,146.13,6.8408]
[1745809301622,4.8451895,146.14,146.13,6.8408]
[1745809302523,4.84778489,146.14,146.13,6.8408]
[1745809308129,4.84778489,146.14,146.13,11.62049713]
[1745809308427,4.77969713,146.18,146.13,4.77969713]
[1745809309026,4.77969713,146.18,146.15,6.8397]
[1745809309431,4.77969713,146.18,146.13,4.77969713]
[1745809311228,11.61849713,146.18,146.15,6.84]
[1745809311629,4.77969713,146.18,146.13,4.77969713]
[1745809313337,11.61839713,146.18,146.15,6.8397]
[1745809314539,4.77969713,146.18,146.15,6.8397]
[1745809314731,4.77969713,146.18,146.13,4.77969713]
[1745809315237,4.77969713,146.17,146.13,4.77969713]
[1745809315435,4.77969713,146.17,146.15,6.8397]
[1745809316144,4.77969713,146.17,146.16,6.8396]
[1745809316343,4.77969713,146.18,146.16,6.8396]
[1745809320247,4.74627484,146.17,146.16,6.8396]
[1745809321242,4.74615153,146.17,146.16,6.8396]
[1745809328953,4.77969713,146.2,146.16,6.8396]
[1745809328954,29.67969713,146.21,146.19,6.8382]
[1745809329258,4.74329319,146.2,146.19,6.8382]
[1745809330857,4.74078166,146.2,146.19,6.8382]
[1745809332356,4.74078166,146.2,146.18,6.8386]
[1745809332554,4.74078166,146.19,146.18,6.8386]
[1745809335358,4.74078166,146.19,146.18,11.61829713]
[1745809335955,4.74078166,146.19,146.18,36.49829713]
[1745809336363,1e-08,146.19,146.18,36.49829713]
[1745809336563,31.69689713,146.24,146.21,6.8371]
[1745809336967,38.53279713,146.24,146.2,6.8375]
[1745809337164,33.7531,146.24,146.2,6.8375]
[1745809337363,38.53279713,146.24,146.2,6.8375]
[1745809338760,6.8364,146.23,146.2,6.8375]
[1745809338968,4.77969713,146.23,146.18,29.65969713]
[1745809339163,4.77969713,146.22,146.18,29.65969713]
[1745809339464,11.61659713,146.22,146.18,24.88]
[1745809339664,11.61659713,146.22,146.18,36.49809713]
[1745809340565,11.61659713,146.22,146.19,6.8381]
[1745809340862,11.61609713,146.23,146.19,6.8381]
[1745809341068,24.9,146.24,146.2,4.77969713]
[1745809341271,4.77969713,146.25,146.2,11.61709713]
[1745809341567,6.8359,146.24,146.2,11.61709713]
[1745809342068,6.8359,146.24,146.21,6.8372]
[1745809342565,4.77969713,146.25,146.21,4.77969713]
[1745809342766,4.77969713,146.26,146.22,4.77969713]
[1745809343366,4.77969713,146.26,146.23,6.8359]
[1745809344168,11.61469713,146.26,146.23,6.8359]
[1745809344969,4.77969713,146.26,146.24,6.8358]
[1745809345164,4.77969713,146.28,146.22,4.77969713]
[1745809345467,4.77969713,146.26,146.21,4.77969713]
[1745809345872,11.61479713,146.26,146.23,6.836]
[1745809348768,11.61429713,146.27,146.23,6.836]
[1745809348967,4.77969713,146.27,146.23,6.836]
[1745809350266,6.835,146.26,146.23,6.836]
[1745809352670,11.61429713,146.27,146.23,6.836]
[1745809354471,6.8352,146.26,146.23,6.836]
[1745809355371,11.61489713,146.26,146.23,6.836]
[1745809356969,6.8357,146.25,146.22,4.77969713]
[1745809357176,4.77969713,146.23,146.19,4.77969713]
[1745809357470,4.77969713,146.2,146.14,24.88]
[1745809357675,4.77969713,146.19,146.16,6.8394]
[1745809357877,4.77969713,146.18,146.16,6.8394]
[1745809358076,4.77969713,146.19,146.16,6.8394]
[1745809358568,4.77969713,146.2,146.17,6.8391]
[1745809358773,24.88,146.21,146.19,4.77969713]
[1745809358970,29.63969713,146.24,146.19,4.77969713]
[1745809359369,36.47579713,146.24,146.2,6.8377]
[1745809361673,6.8363,146.23,146.2,6.8377]
[1745809363079,11.61599713,146.23,146.2,6.8377]
[1745809364579,4.77969713,146.23,146.2,6.8377]
[1745809366279,4.77969713,146.23,146.21,6.8372]
[1745809366579,11.61609713,146.23,146.19,4.77969713]
[1745809366784,4.77969713,146.2,146.16,24.86]
[1745809366978,4.77969713,146.19,146.14,4.77969713]
[1745809367180,4.77969713,146.17,146.13,29.63969713]
[1745809367683,4.77969713,146.17,146.13,31.7008]
[1745809367981,4.77969713,146.16,146.12,4.77969713]
[1745809368280,11.61939713,146.16,146.12,11.62079713]
[1745809368678,4.77969713,146.16,146.11,4.77969713]
[1745809368881,11.61989713,146.15,146.11,11.62129713]
[1745809369184,11.61989713,146.15,146.11,6.8416]
[1745809369983,11.61989713,146.15,146.12,6.8414]
[1745809370286,11.62019713,146.14,146.1,24.86]
[1745809370479,11.62019713,146.14,146.09,4.77969713]
[1745809370881,4.77969713,146.14,146.11,6.8418]
[1745809371083,4.77969713,146.14,146.09,4.77969713]
[1745809371985,11.62029713,146.14,146.1,6.842]
[1745809372286,4.77969713,146.14,146.09,4.77969713]
[1745809372888,4.77969713,146.14,146.11,6.8418]
[1745809373383,29.65969713,146.16,146.11,4.77969713]
[1745809373687,36.49949713,146.16,146.12,6.8412]
[1745809373892,24.88,146.16,146.13,4.77969713]
[1745809375091,24.88,146.16,146.13,11.62039713]
[1745809376494,24.88,146.16,146.13,6.8407]
[1745809377093,29.65969713,146.16,146.13,6.8407]
[1745809377391,36.49929713,146.16,146.13,6.8407]
[1745809378593,4.77969713,146.15,146.13,6.8407]
[1745809381998,20.55,146.12,145.94,31.93862736]
[1745809382195,4.77969713,145.95,145.87,244.31940213]
[1745809382396,11.62949713,145.95,145.87,246.392505]
[1745809382696,4.77969713,145.92,145.87,239.539705]
[1745809382890,4.77969713,145.92,145.88,355.01663507]
[1745809383598,7.4798845,145.93,145.88,355.01663507]
[1745809383998,7.4798845,145.93,145.88,330.13663507]
[1745809384297,7.4798845,145.93,145.88,355.01663507]
[1745809385597,7.4798845,145.93,145.88,24.88]
[1745809386198,6.8513,145.92,145.88,24.88]
[1745809386697,6.8493,145.96,145.88,24.88]
[1745809388002,6.8496,145.95,145.88,24.88]
[1745809389103,6.8491,145.96,145.88,24.88]
[1745809389802,6.8491,145.96,145.89,6.8519]
[1745809390200,6.8494,145.95,145.89,6.8519]
[1745809390504,1.9332,145.97,145.89,6.8519]
[1745809390696,6.849,145.96,145.89,6.8519]
[1745809390900,1.9332,145.97,145.89,6.8519]
[1745809391096,1.9332,145.97,145.88,31.7327]
[1745809391403,6.8498,145.95,145.88,31.7327]
[1745809391603,6.8498,145.95,145.89,6.8521]
[1745809392211,6.8491,145.96,145.89,6.8521]
[1745809392705,6.8491,145.96,145.9,6.8517]
[1745809393000,6.8495,145.95,145.88,24.88]
[1745809393605,6.8495,145.95,145.9,6.8517]
[1745809394306,6.849,145.96,145.9,6.8517]
[1745809394613,1.9332,145.97,145.89,6.8521]
[1745809394809,29.3432,145.97,145.62,210.0]
[1745809395103,20.55,145.93,145.63,1.25447166]
[1745809395313,34.2535,145.91,145.71,6.8607]
[1745809395515,20.55,145.89,145.7,25.06]
[1745809395813,6.8573,145.79,145.7,25.06]
[1745809396014,25.08,145.83,145.64,493.06]
[1745809396217,3.9467,145.82,145.65,26.2]
[1745809396515,6.8583,145.77,145.68,6.8618]
[1745809396716,6.8583,145.77,145.64,493.06]
[1745809396717,26.2,145.79,145.69,26.2]
[1745809396915,26.2,145.79,145.7,26.2]
[1745809397117,30.1467,145.82,145.71,26.2]
[1745809397416,6.8573,145.79,145.71,26.2]
[1745809400318,6.8573,145.79,145.71,33.0606]
[1745809401422,30.1467,145.82,145.71,26.2]
[1745809402122,6.8573,145.79,145.71,33.0607]
[1745809403221,6.8573,145.79,145.72,6.8602]
[1745809403423,6.8565,145.8,145.72,6.8602]
[1745809403722,6.8565,145.8,145.71,26.2]
[1745809403922,6.8565,145.8,145.72,6.8602]
[1745809404924,2.0603,145.81,145.71,26.2]
[1745809405321,6.8578,145.78,145.71,26.2]
[1745809405527,2.0603,145.81,145.71,33.0606]
[1745809406427,6.8574,145.78,145.72,6.8601]
[1745809406735,2.0603,145.81,145.71,26.2]
[1745809408229,8.9165,145.81,145.75,6.8584]
[1745809408526,2.0603,145.81,145.71,26.2]
[1745809408726,2.0603,145.81,145.76,6.858]
[1745809409827,33.0556,145.82,145.77,6.8578]
[1745809410824,6.856,145.81,145.77,6.8578]
[1745809411428,33.0556,145.82,145.77,6.8578]
[1745809412229,33.0556,145.82,145.78,6.8574]
[1745809413228,6.856,145.81,145.77,6.8577]
[1745809413628,26.2,145.82,145.75,26.22]
[1745809413927,28.3203,145.85,145.75,26.22]
[1745809414328,6.8555,145.82,145.78,6.8571]
[1745809414531,28.3203,145.85,145.78,6.8571]
[1745809414727,28.3203,145.85,145.75,26.22]
[1745809414928,6.8559,145.82,145.78,6.8574]
[1745809416530,6.856,145.81,145.77,6.8578]
[1745809416728,6.856,145.81,145.75,26.22]
[1745809417929,14.34770055,145.82,145.75,26.22]
[1745809418130,14.34770055,145.82,145.77,6.8578]
[1745809418628,14.34770055,145.82,145.75,26.22]
[1745809418835,14.34770055,145.82,145.78,6.8574]
[1745809419333,7.49200055,145.82,145.79,6.8566]
[1745809419530,6.8552,145.83,145.75,26.22]
[1745809419736,7.49200055,145.84,145.76,7.49200055]
[1745809419928,35.1744,145.85,145.82,6.8555]
[1745809420428,4.85816829,145.84,145.79,26.22]
[1745809420624,35.1744,145.85,145.79,26.22]
[1745809421128,35.1744,145.85,145.81,6.8559]
[1745809421430,4.8655813,145.84,145.81,6.8559]
[1745809422535,4.8655813,145.84,145.82,6.8555]
[1745809422736,4.87431261,145.83,145.79,26.22]
[1745809423035,6.8541,145.85,145.81,6.8557]
[1745809423334,4.87431145,145.84,145.81,6.8557]
[1745809423530,4.87431145,145.83,145.81,6.8557]
[1745809423738,7.49200055,145.89,145.8,7.49200055]
[1745809423938,4.88354933,145.88,145.81,2.0829]
[1745809424236,11.73684933,145.87,145.83,6.8546]
[1745809424436,4.89494126,145.86,145.81,2.0829]
[1745809424636,7.49200055,145.89,145.81,2.0829]
[1745809424946,4.8947198,145.88,145.81,2.0829]
[1745809425133,4.8947198,145.87,145.81,2.0829]
[1745809425332,4.8947198,145.86,145.81,2.0829]
[1745809425632,6.853,145.88,145.81,2.0829]
[1745809425936,7.49200055,145.83,145.67,514.3072]
[1745809426136,889.83575508,145.87,145.7,1.9716]
[1745809426137,7.49200055,145.79,145.7,1.9716]
[1745809426528,7.49200055,145.79,145.71,7.49200055]
[1745809426727,4.91251459,145.78,145.71,7.49200055]
[1745809426927,4.9128374,145.77,145.71,7.49200055]
[1745809427131,7.49200055,145.79,145.71,7.49200055]
[1745809427331,4.91558772,145.78,145.75,6.8585]
[1745809427532,4.91558772,145.77,145.75,32.9185]
[1745809427738,6.8568,145.8,145.75,32.9185]
[1745809427936,4.91559937,145.79,145.75,32.9185]
[1745809428137,4.91559937,145.78,145.75,32.9185]
[1745809428337,4.91559937,145.77,145.75,32.9185]
[1745809428533,6.8568,145.8,145.75,32.9185]
[1745809428734,4.91739099,145.79,145.75,32.9185]
[1745809428935,4.91739099,145.78,145.75,32.9185]
[1745809429134,4.91739099,145.77,145.75,32.9185]
[1745809429338,6.8568,145.8,145.75,32.9185]
[1745809429637,4.91944514,145.79,145.75,32.9185]
[1745809429837,4.91944514,145.78,145.75,32.9185]
[1745809430038,4.91944514,145.77,145.75,32.9185]
[1745809430239,6.8568,145.8,145.75,32.9185]
[1745809430537,4.92127412,145.79,145.75,32.9185]
[1745809430738,4.92127412,145.78,145.75,32.9185]
[1745809430933,4.92127412,145.77,145.75,32.9185]
[1745809431135,6.857,145.79,145.75,32.9185]
[1745809431336,4.92192667,145.78,145.75,32.9185]
[1745809431538,4.92192667,145.77,145.75,32.9185]
[1745809431738,6.857,145.79,145.75,32.9185]
[1745809431938,4.9231745,145.78,145.76,6.8583]
[1745809432139,4.9231745,145.77,145.76,6.8583]
[1745809433741,2.089,145.86,145.8,6.8564]
[1745809433939,2.089,145.86,145.8,32.9164]
[1745809435243,1.9516,145.87,145.83,6.855]
[1745809435639,1.9516,145.87,145.8,28.1314]
[1745809435838,8.8052,145.87,145.8,28.1314]
[1745809436039,8.8052,145.87,145.82,6.8554]
[1745809436238,16.29720055,145.87,145.82,6.8554]
[1745809436741,6.8537,145.86,145.82,6.8554]
[1745809436941,9.44360055,145.87,145.81,6.8559]
[1745809437142,7.49200055,145.85,145.8,26.06]
[1745809437346,6.8554,145.83,145.8,26.06]
[1745809437643,7.49200055,145.83,145.8,26.06]
[1745809438744,14.34720055,145.83,145.8,26.06]
[1745809439543,14.34640055,145.85,145.81,6.8558]
[1745809440645,6.8547,145.84,145.81,6.8558]
[1745809441148,6.8551,145.83,145.8,32.9163]
[1745809441445,7.49200055,145.85,145.8,32.9163]
[1745809441746,6.8547,145.84,145.8,32.9163]
[1745809443250,6.8547,145.84,145.81,6.856]
[1745809443442,14.34620055,145.85,145.8,26.06]
[1745809443838,6.8542,145.85,145.82,6.8554]
[1745809444049,6.8542,145.85,145.8,26.06]
[1745809445345,6.8542,145.85,145.82,6.8554]
[1745809445751,4.83602825,145.84,145.82,6.8554]
[1745809445943,4.83602825,145.83,145.82,6.8554]
[1745809448350,4.83602825,145.83,145.81,6.8558]
[1745809448548,4.83602825,145.82,145.81,6.8558]
[1745809449046,26.06,145.89,145.8,26.06]
[1745809449245,4.83558099,145.88,145.8,26.06]
[1745809449446,4.83558099,145.87,145.8,33.55200055]
[1745809449646,4.83558099,145.86,145.8,33.55200055]
[1745809449945,4.83558099,145.85,145.83,6.8546]
[1745809450149,4.83558099,145.84,145.83,6.8546]
[1745809450448,4.83558099,145.84,145.8,26.06]
[1745809450650,7.49200055,145.87,145.8,26.06]
[1745809450851,4.83582065,145.86,145.8,26.06]
[1745809451041,4.83585463,145.85,145.8,26.06]
[1745809451243,4.83585463,145.84,145.82,6.8555]
[1745809451448,4.83585463,145.83,145.82,6.8555]
[1745809452857,6.8538,145.86,145.83,6.855]
[1745809453053,4.83815943,145.85,145.83,6.855]
[1745809453351,4.83815943,145.84,145.83,6.855]
[1745809454050,4.83815943,145.84,145.82,6.8553]
[1745809454354,4.83815943,145.83,145.82,6.8553]
[1745809455757,4.83815943,145.83,145.76,505.30000055]
[1745809455955,4.83815943,145.82,145.77,26.04]
[1745809456157,7.49200055,145.85,145.77,26.04]
[1745809456360,11.69438527,145.84,145.8,6.8561]
[1745809456657,4.83948527,145.83,145.8,6.8561]
[1745809456957,4.83948527,145.82,145.8,6.8561]
[1745809457156,6.8549,145.84,145.8,6.8561]
[1745809457359,4.83964195,145.83,145.77,26.04]
[1745809457555,4.83964195,145.82,145.77,26.04]
[1745809457858,6.8543,145.85,145.77,26.04]
[1745809458060,4.83961856,145.84,145.77,26.04]
[1745809458357,4.83961856,145.83,145.77,26.04]
[1745809458556,4.83961856,145.82,145.77,26.04]
[1745809458758,6.8543,145.85,145.81,6.8556]
[1745809458959,4.83987686,145.84,145.81,6.8556]
[1745809459257,4.83987686,145.83,145.81,6.8556]
[1745809459458,4.83987686,145.82,145.81,6.8556]
[1745809460353,4.83987686,145.82,145.77,26.04]
[1745809460550,4.84075265,145.81,145.77,26.04]
[1745809460752,6.8561,145.81,145.78,6.8573]
[1745809460957,4.84117196,145.8,145.78,6.8573]
[1745809461156,4.84117196,145.79,145.77,26.04]
[1745809461461,4.84117196,145.78,145.77,26.04]
[1745809462463,4.84250075,145.78,145.77,32.8974]
[1745809464064,14.34730055,145.83,145.79,6.8566]
[1745809464262,4.84252986,145.82,145.79,6.8566]
[1745809464565,4.84284989,145.81,145.79,6.8566]
[1745809464765,4.84284989,145.8,145.79,6.8566]
[1745809466365,4.84233749,145.8,145.79,6.8566]
[1745809468362,4.84233749,145.8,145.77,26.04]
[1745809468363,6.8551,145.83,145.8,6.8565]
[1745809468566,4.84184134,145.82,145.8,6.8565]
[1745809468765,4.84184134,145.81,145.8,6.8565]
[1745809470261,25.56,145.84,145.82,6.8553]
[1745809470466,4.84250828,145.83,145.77,26.04]
[1745809470666,4.84250828,145.82,145.77,26.04]
[1745809470869,6.8546,145.84,145.81,6.8557]
[1745809471066,4.84271273,145.83,145.81,6.8557]
[1745809471367,4.84271273,145.82,145.81,32.4157]
[1745809472164,6.8537,145.86,145.83,6.855]
[1745809472468,4.84310802,145.85,145.83,6.855]
[1745809472668,4.84310802,145.84,145.83,6.855]
[1745809473272,25.56,145.9,145.88,6.8526]
[1745809473465,11.49760055,145.91,145.88,6.8526]
[1745809474269,18.34910055,145.91,145.88,6.8526]
[1745809474470,1.9523,145.92,145.89,6.8522]
[1745809474668,1.9523,145.92,145.85,25.56]
[1745809474968,25.56,145.93,145.89,6.852]
[1745809475470,32.4107,145.93,145.89,6.852]
[1745809476371,6.8509,145.92,145.89,6.852]
[1745809476972,32.4105,145.93,145.89,6.852]
[1745809479468,33.05200055,145.93,145.85,25.56]
[1745809479672,7.49200055,145.91,145.85,25.56]
[1745809480272,6.8521,145.9,145.86,6.8533]
[1745809480971,6.8521,145.9,145.87,6.8531]
[1745809481175,14.34350055,145.91,145.87,6.8531]
[1745809481479,7.49200055,145.91,145.87,6.8531]
[1745809482270,6.8518,145.9,145.87,6.8531]
[1745809483078,6.8518,145.9,145.86,6.8536]
[1745809485181,4.70430622,145.89,145.86,6.8536]
[1745809485479,6.8518,145.9,145.86,6.8536]
[1745809485680,4.70411382,145.89,145.86,6.8536]
[1745809485881,6.8518,145.9,145.86,6.8536]
[1745809486077,4.70411382,145.89,145.86,6.8536]
[1745809486278,6.8518,145.9,145.86,6.8536]
[1745809486478,4.70395554,145.89,145.86,6.8536]
[1745809486779,6.8518,145.9,145.86,6.8536]
[1745809486978,4.70379202,145.89,145.86,6.8536]
[1745809487181,6.8518,145.9,145.86,6.8536]
[1745809487479,4.70379202,145.89,145.86,6.8536]
[1745809487779,6.8526,145.89,145.85,32.4141]
[1745809487981,4.70362818,145.88,145.85,32.4141]
[1745809488182,6.8526,145.89,145.85,32.4141]
[1745809488382,4.70368661,145.88,145.85,32.4141]
[1745809488578,6.8526,145.89,145.85,32.4141]
[1745809488776,4.70359445,145.88,145.85,32.4141]
[1745809488981,6.8528,145.88,145.85,25.56]
[1745809489475,4.70405256,145.87,145.85,25.56]
[1745809489682,6.8528,145.88,145.85,25.56]
[1745809489883,4.70412483,145.87,145.85,25.56]
[1745809490183,4.70412483,145.87,145.83,6.855]
[1745809490184,4.70422899,145.86,145.83,6.855]
[1745809490883,36.65440055,145.89,145.83,6.855]
[1745809491085,4.70440305,145.88,145.83,6.855]
[1745809491283,4.70440305,145.87,145.83,6.855]
[1745809491485,4.70459465,145.86,145.83,6.855]
[1745809491784,36.65440055,145.89,145.83,6.855]
[1745809491982,6.8535,145.87,145.83,6.855]
[1745809492183,4.70459466,145.86,145.83,6.855]
[1745809492484,6.8539,145.86,145.83,6.855]
[1745809493383,4.70537863,145.85,145.83,6.855]
[1745809493784,6.8539,145.86,145.83,6.855]
[1745809493985,4.70547459,145.85,145.83,6.855]
[1745809494185,14.34540055,145.87,145.83,6.855]
[1745809494385,4.70547459,145.86,145.83,6.855]
[1745809494587,4.70547459,145.85,145.83,6.855]
[1745809494786,14.34540055,145.87,145.83,6.855]
[1745809494987,4.70548984,145.86,145.83,6.855]
[1745809495187,4.70548984,145.85,145.82,32.0153]
[1745809495390,6.8537,145.86,145.82,32.0153]
[1745809495689,4.70548935,145.85,145.82,32.0153]
[1745809495885,6.8537,145.86,145.83,6.855]
[1745809496184,4.70548935,145.85,145.83,6.855]
[1745809496486,6.8537,145.86,145.83,6.855]
[1745809496689,4.70552669,145.85,145.83,6.855]
[1745809496882,4.70553247,145.84,145.79,25.16]
[1745809497084,7.49200055,145.83,145.79,25.16]
[1745809497785,4.70613582,145.8,145.76,29.9541659]
[1745809497985,4.7941659,145.81,145.76,29.9541659]
[1745809498284,4.70692913,145.8,145.76,29.9541659]
[1745809498485,4.7941659,145.81,145.76,29.9541659]
[1745809498685,4.70593368,145.8,145.76,29.9541659]
[1745809498892,4.7941659,145.81,145.76,29.9541659]
[1745809499081,4.70621087,145.8,145.76,29.9541659]
[1745809499388,11.6504659,145.81,145.78,6.8574]
[1745809499587,4.7053403,145.8,145.78,6.8574]
[1745809499788,6.8563,145.81,145.78,6.8574]
[1745809499989,4.70533452,145.8,145.78,6.8574]
[1745809500290,6.8565,145.8,145.77,6.8578]
[1745809501890,6.8562,145.81,145.77,6.8578]
[1745809502090,4.70416136,145.8,145.77,6.8578]
[1745809502486,4.70416136,145.8,145.76,32.0183]
[1745809502691,7.4908582,145.81,145.76,32.0183]
[1745809502893,4.70341776,145.8,145.72,36.7816582]
[1745809503097,12.19427596,145.79,145.72,29.2908]
[1745809503292,4.70412711,145.78,145.72,25.16]
[1745809504089,6.8581,145.77,145.73,6.8596]
[1745809507196,7.4908582,145.77,145.72,32.0202]
[1745809507495,7.4908582,145.77,145.72,6.8602]
[1745809507794,6.8585,145.76,145.72,6.8602]
[1745809507997,32.6708582,145.77,145.71,6.8607]
[1745809508297,4.69880268,145.76,145.71,6.8607]
[1745809508695,4.69880268,145.76,145.72,6.8601]
[1745809508696,6.8591,145.75,145.72,6.8601]
[1745809509192,32.6708582,145.77,145.72,6.8601]
[1745809509393,11.55568168,145.76,145.72,6.8601]
[1745809509593,6.8584,145.76,145.72,6.8601]
[1745809511697,6.8589,145.75,145.72,6.8601]
[1745809513001,6.8585,145.76,145.73,6.8597]
[1745809516707,7.4908582,145.75,145.66,25.18]
[1745809516900,7.4908582,145.73,145.66,25.18]
[1745809517099,6.8606,145.72,145.68,6.8621]
[1745809517403,6.8606,145.72,145.66,25.18]
[1745809518002,32.6708582,145.73,145.66,25.18]
[1745809518613,6.861,145.71,145.67,6.8625]
[1745809520813,6.861,145.71,145.68,6.8621]
[1745809521016,6.8604,145.72,145.66,25.18]
[1745809521414,6.8604,145.72,145.68,6.8618]
[1745809521613,4.80043966,145.71,145.68,6.8618]
[1745809521915,11.66133966,145.71,145.68,6.8618]
[1745809526819,4.80043966,145.7,145.68,6.8618]
[1745809528016,4.80043966,145.7,145.66,29.98043966]
[1745809528221,4.80043966,145.71,145.66,29.98043966]
[1745809528525,4.80043966,145.71,145.67,4.80043966]
[1745809528819,4.80043966,145.71,145.66,29.98043966]
[1745809529121,4.80043966,145.71,145.68,6.8618]
[1745809529822,11.66133966,145.71,145.68,6.8618]
[1745809530221,4.80043966,145.7,145.67,6.8626]
[1745809531721,4.80043966,145.7,145.68,6.8621]
[1745809532027,4.80043966,145.71,145.66,4.80043966]
[1745809532225,4.80043966,145.71,145.67,4.80043966]
[1745809532730,6.8604,145.72,145.67,4.80043966]
[1745809532922,36.84053966,145.73,145.68,4.80043966]
[1745809533323,36.84053966,145.73,145.7,6.8611]
[1745809535025,36.84053966,145.73,145.69,11.66183966]
[1745809535526,6.8603,145.72,145.69,11.66183966]
[1745809535730,6.8603,145.72,145.69,6.8614]
[1745809536130,6.8607,145.71,145.68,11.66233966]
[1745809536327,6.8607,145.71,145.68,6.8619]
[1745809536526,4.80043966,145.72,145.68,6.8619]
[1745809536731,4.80043966,145.71,145.68,6.8619]
[1745809537231,4.80043966,145.71,145.69,6.8616]
[1745809539833,4.80043966,145.72,145.7,6.8611]
[1745809540034,11.66073966,145.72,145.67,29.78043966]
[1745809540433,4.70634912,145.71,145.68,6.862]
[1745809540736,11.66073966,145.72,145.67,29.78043966]
[1745809540929,4.7063838,145.71,145.68,6.8618]
[1745809541130,11.66073966,145.72,145.68,6.8618]
[1745809541333,4.70640112,145.71,145.68,6.8618]
[1745809541633,4.70640112,145.7,145.68,6.8618]
[1745809541836,11.66073966,145.72,145.69,6.8616]
[1745809542136,11.57086576,145.71,145.67,29.78043966]
[1745809542328,6.8607,145.71,145.68,6.8617]
[1745809542529,4.71304678,145.7,145.68,6.8617]
[1745809542728,6.8607,145.71,145.68,6.8617]
[1745809542923,4.71313259,145.7,145.68,6.8617]
[1745809543128,4.80043966,145.72,145.68,6.8617]
[1745809543332,4.71313259,145.71,145.68,6.8617]
[1745809543533,4.71313259,145.7,145.68,6.8617]
[1745809543735,4.80043966,145.72,145.68,6.8617]
[1745809543934,11.57548483,145.71,145.68,6.8617]
[1745809544134,4.71478483,145.7,145.68,6.8617]
[1745809544335,6.8607,145.71,145.68,6.8617]
[1745809544635,4.71660845,145.7,145.68,6.8617]
[1745809544830,11.66083966,145.72,145.69,6.8616]
[1745809545027,4.71664247,145.71,145.69,6.8616]
[1745809545230,4.71664247,145.7,145.68,6.8619]
[1745809545432,11.66083966,145.72,145.68,6.8619]
[1745809545634,4.71681527,145.71,145.68,6.8619]
[1745809545834,4.71681527,145.7,145.68,6.8619]
[1745809546034,11.66083966,145.72,145.68,6.8619]
[1745809546244,4.71681527,145.71,145.68,6.8619]
[1745809546432,4.71681527,145.7,145.68,6.8619]
[1745809546629,11.66083966,145.72,145.68,6.8619]
[1745809546933,4.7189768,145.71,145.68,6.8619]
[1745809547133,4.7189768,145.7,145.68,6.8619]
[1745809547337,11.66083966,145.72,145.69,6.8616]